[Event "Summer Prague Open-A 2022"]
[Site "Prague"]
[Date "2022.08.10"]
[Round "7.17"]
[White "Kowalec, Maciej"]
[Black "Slampa, Jan"]
[Result "0-1"]
[ECO "D10"]
[WhiteElo "2104"]
[BlackElo "2254"]
[Annotator "TA"]
[PlyCount "70"]
[EventDate "2022.08.05"]
[EventType "swiss"]
[EventCountry "CZE"]
[SourceTitle "playchess.com"]
[Source "ChessBase"]
[SourceQuality "1"]
[TimeControl "40/5400+30:1800+30"]

{[%evp 15,70,0,0,0,0,0,0,0,-7,-131,-129,-125,-134,-118,-112,-125,-19,-50,-20,-106,-41,-160,-164,-164,-85,-106,-27,-195,-131,-412,-398,-362,-279,-356,-345,-288,-168,-1797,-1799,-2044,-2062,-1992,-552,-532,-506,-29984,-29985,-29985,-29986,-29986,-29987,-29987,-29988,-29988,-29989,-29996,-716]} 1. d4 {[%emt 0:00:02]} d5 {[%emt 0:00:10]} 2. c4 {[%emt 0:00:07]} c6 {[%emt 0:00:05]} 3. Nc3 {[%emt 0:00:12]} a6 {[%emt 0:00:37]} 4. e3 {[%emt 0:01:52]} Nf6 {[%emt 0:00:13]} 5. Nf3 {[%emt 0:00:23]} b5 {[%emt 0:01:20]} 6. b3 {[%emt 0:00:44]} Bg4 {[%emt 0:00:10]} 7. h3 {[%emt 0:02:59] 7.a4 is becoming the main line.} Bxf3 {[%emt 0:15:51]} 8. Qxf3 {[%emt 0:00:09]} e5 {[%emt 0:00:06]} 9. dxe5 {[%emt 0:05:26] D15: Slav Defence: 4 Nc3 a6 and gambit lines after 4 Nc3 dxc4.} Bb4 {[%emt 0:00:03]} 10. Bd2 {[%emt 0:01:48]} Bxc3 {[%emt 0:03:04]} 11. Bxc3 {[%emt 0:00:12] The position is equal.} Ne4 {[%emt 0:00:03]} 12. Bd2 {[%emt 0:09:50] [#]} (12. Bb4 $1 $11 c5 {[#]} 13. Rd1 $1) 12... Nxd2 $146 {[%emt 0:00:45]} ({Predecessor:} 12... bxc4 13. bxc4 Nd7 14. cxd5 Nxd2 15. Kxd2 Qa5+ 16. Kd1 Qa4+ 17. Kd2 Rb8 18. Bd3 Qa5+ 19. Kc2 Qc5+ 20. Kd1 Qc3 {0-1 (20) Sauve,R (1926)-Laflamme,S (1974) Ste Foy 2018}) 13. Kxd2 {[%emt 0:00:08]} dxc4+ {[%emt 0:00:11]} 14. Kc2 {[%emt 0:00:54]} O-O {[%emt 0:01:21]} 15. Be2 {[%emt 0:34:18]} a5 {[%emt 0:04:16]} (15... cxb3+ $17 16. axb3 Nd7) 16. Rhd1 {[%emt 0:01:45]} Qe7 {[%emt 0:00:20]} 17. Qf5 {[%emt 0:01:49]} (17. bxc4 $11 {keeps the balance.} Na6 18. Qe4) 17... Na6 {[%emt 0:01:21][%cal Bb8a6,Ba6b4,Bb4d5][%mdl 32]} 18. Rd6 {[%emt 0:08:24]} (18. bxc4 $15 Qa3 19. Kd2) 18... Nb4+ {[%emt 0:04:09]} 19. Kb2 {[%emt 0:00:25]} cxb3 {[%emt 0:03:03]} (19... Nd5 $19 {And now ...c3+ would win.} 20. Bf3 g6) 20. axb3 {[%emt 0:00:21]} a4 {[%emt 0:00:40]} (20... Nd5 $17 {...a4 is the strong threat.} 21. Qe4 (21. Bxb5 Nxe3 22. Qe4 cxb5 $17) 21... Rfd8) 21. bxa4 $2 {[%emt 0:06:02]} (21. Qe4 $1 $11 {and White is okay.} Rad8 22. Qd4 (22. Qxb4 Qxe5+ 23. Rd4 c5 $17)) 21... bxa4 $19 {[%emt 0:01:05]} 22. Ra3 $2 {[%emt 0:05:58][%mdl 8192] Now White is beyond hope.} (22. Bc4 $17) 22... Nd5 {[%emt 0:04:02] Hoping for ...Qb7+. Dancing on a razor blade.} 23. Kc1 {[%emt 0:02:40]} Rab8 {[%emt 0:02:29]} 24. Bc4 {[%emt 0:06:05]} g6 {[%emt 0:01:57]} 25. Qe4 {[%emt 0:01:15]} Rb4 {[%emt 0:01:45]} (25... Qb7 $142 26. Qc2 Qb4) 26. f4 $2 {[%emt 0:00:53]} (26. Kd1) 26... Qh4 {[%emt 0:02:07]} 27. Kd1 {[%emt 0:02:13] Prevents Qe1+.} Rfb8 {[%emt 0:00:13] ( -> ...Qf2)} 28. Bxd5 {[%emt 0:02:13]} Rxe4 {[%emt 0:03:17]} (28... cxd5 $142 29. Qxd5 Rb1+ 30. Ke2 R8b2+ 31. Kf3 Rf1+ 32. Ke4 Rb4+ 33. Qd4 Rxd4+ 34. Rxd4 Qf2 35. Rd8+ Kg7) 29. Bxe4 {[%emt 0:00:02]} Qf2 {[%emt 0:00:15] White must now prevent ...Qf1+.} 30. Rxa4 {[%emt 0:03:26] [#]} (30. Rxc6 $19 Rb4 31. Rc8+ Kg7 32. Bc2) 30... Qf1+ {[%emt 0:00:44] Black mates.} 31. Kc2 {[%emt 0:00:31]} Qb1+ {[%emt 0:00:18]} 32. Kd2 {[%emt 0:00:13]} Rb2+ {[%emt 0:00:16]} 33. Kc3 {[%emt 0:00:09]} Qc1+ {[%emt 0:00:12]} 34. Kd4 {[%emt 0:00:07]} Qd1+ {[%emt 0:00:10]} 35. Kc3 {[%emt 0:00:48]} Qb3+ {[%emt 0:00:02] Weighted Error Value: White=1.11/Black=0.44} 0-1

[Event "Summer Prague Open-A 2022"]
[Site "Prague"]
[Date "2022.08.10"]
[Round "7.18"]
[White "Jordanov, Mihail"]
[Black "Polster, Christian"]
[Result "0-1"]
[ECO "B34"]
[WhiteElo "2158"]
[BlackElo "2236"]
[Annotator "TA"]
[PlyCount "52"]
[EventDate "2022.08.05"]
[EventType "swiss"]
[EventCountry "CZE"]
[SourceTitle "playchess.com"]
[Source "ChessBase"]
[SourceQuality "1"]
[TimeControl "40/5400+30:1800+30"]

{[%evp 19,52,11,13,9,0,0,4,0,-8,0,0,-103,-98,-99,-95,-122,-108,-286,-274,-266,-270,-242,-267,-314,-315,-794,-811,-794,-787,-773,-755,-1715,-1674,-2684,-2412]} 1. e4 {[%emt 0:00:04]} c5 {[%emt 0:00:03]} 2. Nf3 {[%emt 0:00:07]} Nc6 {[%emt 0:00:05]} 3. d4 {[%emt 0:00:11]} cxd4 {[%emt 0:00:05]} 4. Nxd4 {[%emt 0:00:06]} Nf6 {[%emt 0:00:04]} 5. Nc3 {[%emt 0:00:12]} e5 {[%emt 0:00:08]} 6. Ndb5 {[%emt 0:00:13]} d6 {[%emt 0:00:10]} 7. Nd5 {[%emt 0:00:14]} Nxd5 {[%emt 0:00:08]} 8. exd5 {[%emt 0:00:05]} Nb8 {[%emt 0:00:08]} 9. a4 {[%emt 0:00:05]} Be7 {[%emt 0:01:21]} 10. Be2 {[%emt 0:00:07]} O-O {[%emt 0:00:50]} 11. O-O {[%emt 0:00:06] B33: Sicilian: Pelikan and Sveshnikov Variations.} f5 {[%emt 0:03:25]} 12. f4 {[%emt 0:04:16]} Nd7 {[%emt 0:16:02][%cal Bb8d7,Bd7e5,Be5c4][%mdl 32]} 13. Be3 {[%emt 0:18:35] The position is equal.} a6 {[%emt 0:01:33] Hoping for ...exf4.} 14. Na3 $1 {[%emt 0:04:26]} exf4 {[%emt 0:07:52] [#]} 15. Rxf4 $146 {[%emt 0:09:48]} (15. Bxf4 $11 {remains equal.} Qb6+ 16. Kh1) ({Predecessor:} 15. Bxf4 Qb6+ 16. Kh1 Qxb2 17. Nc4 Qf6 18. Bd3 Nc5 19. Nb6 Rb8 20. Be3 Nxd3 21. Qxd3 {½-½ (66) Ljukin,S (2368)-Skliarov,V (2376) Chess.com INT 2020}) 15... Bg5 $17 {[%emt 0:07:43]} 16. Nc4 {[%emt 0:00:27] [#]} Re8 $1 $36 {[%emt 0:28:09][%mdl 2048] And now ...Rxe3 would win. Black has strong initiative.} 17. Qd2 {[%emt 0:23:10] [#]} Ne5 $1 {[%emt 0:05:52]} 18. Ra3 $2 {[%emt 0:14:28]} Bxf4 $19 {[%emt 0:04:47]} 19. Bxf4 {[%emt 0:00:08]} Nxc4 {[%emt 0:00:27]} 20. Bxc4 {[%emt 0:00:14]} Qb6+ {[%emt 0:01:40]} 21. Kf1 {[%emt 0:00:56]} Qxb2 {[%emt 0:02:21]} 22. Bxd6 {[%emt 0:00:17]} (22. Rb3 Qa1+ 23. Kf2) 22... Qb1+ {[%emt 0:00:13] Black is clearly winning.} 23. Kf2 {[%emt 0:01:25]} Qb6+ {[%emt 0:02:18]} 24. Re3 {[%emt 0:00:05]} Re4 {[%emt 0:04:19]} ({And not} 24... Rxe3 25. Qxe3 Qxe3+ 26. Kxe3 $17) 25. Ba3 {[%emt 0:11:03]} f4 {[%emt 0:00:39]} 26. d6+ {[%emt 0:00:30]} Be6 {[%emt 0:00:21] White got outplayed after the opening.  Weighted Error Value: White=1.17/Black=0.00 (flawless)} 0-1

[Event "Summer Prague Open-A 2022"]
[Site "Prague"]
[Date "2022.08.10"]
[Round "7.19"]
[White "Philipp, Mathias"]
[Black "Dahl, Trygve"]
[Result "1-0"]
[ECO "B41"]
[WhiteElo "2092"]
[BlackElo "2230"]
[Annotator "TA"]
[PlyCount "117"]
[EventDate "2022.08.05"]
[EventType "swiss"]
[EventCountry "CZE"]
[SourceTitle "playchess.com"]
[Source "ChessBase"]
[SourceQuality "1"]
[TimeControl "40/5400+30:1800+30"]

{[%evp 13,117,28,56,56,56,56,56,56,67,47,54,54,49,40,81,78,160,115,102,43,308,304,266,209,283,283,310,169,179,176,162,20,8,41,19,-57,114,83,95,13,22,0,301,288,301,267,329,318,322,304,716,660,1325,1298,1170,222,220,213,881,400,1249,1261,1237,1171,930,1062,1137,1133,987,966,932,750,615,332,970,1221,944,396,396,369,333,237,759,541,604,510,543,395,447,336,340,252,12839,12839,12839,12840,12844,12844,27999,27999,27999,27999,27999,27999,27999,27999]} 1. e4 {[%emt 0:00:02]} c5 {[%emt 0:00:06]} 2. Nf3 {[%emt 0:00:04]} e6 {[%emt 0:00:05]} 3. d4 {[%emt 0:00:03]} cxd4 {[%emt 0:00:07]} 4. Nxd4 {[%emt 0:00:02]} a6 {[%emt 0:00:08]} 5. c4 {[%emt 0:00:13]} Nf6 {[%emt 0:00:40]} 6. Nc3 {[%emt 0:00:13]} Qc7 {[%emt 0:00:04]} 7. a3 {[%emt 0:00:30]} b6 {[%emt 0:00:44]} 8. f3 {[%emt 0:00:59] B41: Sicilian: Kan Variation: 5 c4.} Bb7 {[%emt 0:00:15]} 9. Be3 {[%emt 0:00:06]} d6 {[%emt 0:10:31]} 10. Be2 {[%emt 0:02:00] White is slightly better.} Be7 {[%emt 0:00:14]} 11. g4 {[%emt 0:00:27] [#]} Nfd7 $146 {[%emt 0:05:32]} ({Predecessor:} 11... h6 12. h4 Nbd7 13. Rc1 Rc8 14. Kd2 g6 15. Kc2 Ne5 16. Kb1 Qb8 17. Qf1 Bf8 {½-½ (34) Fiorito,J (2272)-Manzone,A (2416) Buenos Aires 2022}) 12. h4 {[%emt 0:04:30]} O-O {[%emt 0:05:03]} 13. Rc1 {[%emt 0:02:55]} Re8 {[%emt 0:03:43]} 14. g5 {[%emt 0:06:36]} g6 {[%emt 0:08:41]} (14... Nc6 $142) 15. Kd2 {[%emt 0:04:25]} Qd8 {[%emt 0:05:41]} 16. Qg1 {[%emt 0:01:56] 0x0.0020aec4bcdddp-1022s more active pieces.} (16. Qe1 $16) 16... d5 $2 {[%emt 0:01:44][%mdl 8192]} (16... h5 $1 $14) 17. cxd5 {[%emt 0:04:21]} exd5 {[%emt 0:00:08]} 18. exd5 {[%emt 0:03:00]} (18. Nxd5 $6 Bxd5 19. exd5 Nf8 $18) 18... Nf8 {[%emt 0:10:13]} 19. h5 {[%emt 0:05:53]} b5 {[%emt 0:01:08]} 20. Bd3 {[%emt 0:04:35]} (20. hxg6 fxg6 21. Kc2 Bc5 $18) (20. Kc2 $142) 20... Nbd7 $18 {[%emt 0:16:49]} 21. hxg6 $1 {[%emt 0:01:30]} fxg6 {[%emt 0:00:26] [#]} 22. Qh2 {[%emt 0:05:03]} (22. Nc6 $2 Bxc6 23. Be4 (23. dxc6 $2 Ne5 $19) 23... Bb7 $19) (22. Rxh7 $3 $18 {[%mdl 512]} Nxh7 23. Bxg6) 22... Bxg5 $11 {[%emt 0:03:21]} 23. f4 $36 {[%emt 0:00:26][%mdl 2048] Black is under pressure.} Bf6 $1 {[%emt 0:03:29][%cal Oe8e3]} (23... Qe7 24. Qg1 $16) 24. Ne6 {[%emt 0:09:22]} (24. Nc6 $11 Bxc6 25. dxc6) 24... Rxe6 $2 {[%emt 0:04:53]} (24... Qa5 $1 $15 {keeps the upper hand.} 25. Ke2 Rac8) 25. dxe6 $16 {[%emt 0:00:41]} Bxh1 {[%emt 0:00:07]} 26. Rxh1 {[%emt 0:00:55]} ({Stronger than} 26. exd7 Bc6 27. f5 Nxd7 28. fxg6 hxg6 $17) (26. Qxh1 $16 Nxe6 27. f5 (27. Qd5 Ndf8 $15)) 26... Nb6 $11 {[%emt 0:00:08]} 27. Bc5 {[%emt 0:02:35] Black must now prevent Bxf8.} (27. Bxb6 $5 Qxb6 28. f5 $11) 27... Be7 {[%emt 0:04:01][%mdl 8192] Black is on the road to losing.} (27... Nc4+ $11 28. Kc2 Nxb2 $1) 28. Bxe7 {[%emt 0:02:47] Chess con chili.} Qxe7 {[%emt 0:00:11]} 29. f5 {[%emt 0:00:19]} Rd8 {[%emt 0:01:10]} 30. Kc2 {[%emt 0:01:43] And now fxg6 would win.} Nd5 {[%emt 0:03:17] Strongly threatening ...Ne3+.} 31. fxg6 {[%emt 0:08:28]} (31. Qe5 Qg5 $18) 31... Ne3+ $2 {[%emt 0:00:44]} (31... Nxe6 32. g7 (32. gxh7+ Kh8 $16) (32. Qxh7+ Qxh7 33. gxh7+ Kh8 $16) 32... Qxg7) 32. Kb1 $18 {[%emt 0:00:12][%cal Rg6h7]} Rxd3 {[%emt 0:03:17]} 33. gxh7+ {[%emt 0:00:08]} Nxh7 {[%emt 0:00:58]} 34. Qxh7+ $2 {[%emt 0:02:46]} Qxh7 {[%emt 0:00:08]} 35. Rxh7 {[%emt 0:00:04][%mdl 4096] Endgame KRN-KRN} Nc4 $2 {[%emt 0:04:58] [#]} (35... Kxh7 $2 36. e7 Nd5 37. e8=Q $18) (35... Rd6 36. e7 (36. Rh6 Nf5 $14) 36... Re6) 36. Rd7 {[%emt 0:03:22]} (36. Ne4 $142 $1 {White threatens Nf6+ and mate.} Kxh7 37. e7 Nd2+ 38. Ka2) 36... Re3 {[%emt 0:01:41]} (36... Ne5 $142) 37. e7 {[%emt 0:00:46]} Re6 {[%emt 0:02:41]} 38. Nd5 {[%emt 0:00:41][%cal Od5f6]} Kf7 {[%emt 0:00:11] Against Nf6} 39. Rd8 {[%emt 0:06:22] aiming for Rf8+.} Nd6 {[%emt 0:00:22]} 40. Rf8+ {[%emt 0:01:19]} Kg7 {[%emt 0:00:04]} 41. Ra8 {[%emt 0:30:52]} Re5 {[%emt 0:05:50] [#]} 42. Rxa6 $1 {[%emt 0:00:00]} Ne8 {[%emt 0:00:06]} 43. Nc3 {[%emt 0:00:00]} b4 $2 {[%emt 0:00:53]} (43... Kf7 44. Rb6 Nc7) 44. axb4 {[%emt 0:00:00]} Kf7 {[%emt 0:01:24]} 45. Kc2 {[%emt 0:00:00]} (45. Ra7 $142 Rxe7 46. Ra6) 45... Kxe7 {[%emt 0:00:12]} 46. Kb3 {[%emt 0:00:00]} Kd7 {[%emt 0:00:29]} 47. Ka4 {[%emt 0:00:00]} Nc7 $2 {[%emt 0:00:52]} (47... Nd6 48. Ra5 Re1) 48. Rh6 {[%emt 0:00:00]} Kc8 {[%emt 0:01:26]} 49. Rb6 {[%emt 0:00:00]} Na8 {[%emt 0:01:02]} 50. Rb5 {[%emt 0:00:00]} Re1 {[%emt 0:01:29]} 51. Rh5 {[%emt 0:00:00] Threatens to win with Ka5.} Re7 {[%emt 0:00:56]} 52. Nd5 {[%emt 0:00:00]} Ra7+ {[%emt 0:01:33]} (52... Re2 53. Kb3 Kb8) 53. Kb5 {[%emt 0:00:00]} Rg7 {[%emt 0:00:17]} 54. Ka6 {[%emt 0:00:00]} Nc7+ {[%emt 0:05:42] [#]} 55. Nxc7 $1 {[%emt 0:00:00]} Kxc7 {[%emt 0:00:02]} 56. b5 {[%emt 0:00:00][%cal Bb4b5,Bb5b6][%mdl 32] White mates.} Rg8 {[%emt 0:04:59]} 57. Ka7 {[%emt 0:00:34]} Rg7 {[%emt 0:00:14]} 58. b4 {[%emt 0:01:47]} Rg1 {[%emt 0:01:17]} 59. b6+ {[%emt 0:00:18] Weighted Error Value: White=0.78/Black=0.48} 1-0

[Event "Summer Prague Open-A 2022"]
[Site "Prague"]
[Date "2022.08.10"]
[Round "7.20"]
[White "Bruchmann, Stephan"]
[Black "Sidletskyi, Ivan"]
[Result "1/2-1/2"]
[ECO "C00"]
[WhiteElo "2226"]
[BlackElo "2075"]
[Annotator "TA"]
[PlyCount "67"]
[EventDate "2022.08.05"]
[EventType "swiss"]
[EventCountry "CZE"]
[SourceTitle "playchess.com"]
[Source "ChessBase"]
[SourceQuality "1"]
[TimeControl "40/5400+30:1800+30"]

{[%evp 9,67,13,29,27,22,15,17,16,16,11,17,6,76,15,16,0,23,0,8,5,17,0,0,0,0,0,0,0,0,-17,-7,-4,-10,-19,-17,-23,0,-33,16,-12,-16,-51,-39,-94,-8,-4,-1,-2,-17,-29,-18,-10,0,0,39,-24,-20,-22,-19,-36]} 1. e4 {[%emt 0:01:19]} e6 {[%emt 0:01:00]} 2. d4 {[%emt 0:00:07]} d5 {[%emt 0:00:14]} 3. Bd3 {[%emt 0:00:46]} c5 {[%emt 0:01:40]} 4. exd5 {[%emt 0:00:08]} exd5 {[%emt 0:00:30]} 5. Nf3 {[%emt 0:00:08]} Nf6 {[%emt 0:02:14]} 6. O-O {[%emt 0:00:56] C01: French: Exchange Variation.} c4 {[%emt 0:01:38]} 7. Be2 {[%emt 0:00:13]} Bd6 {[%emt 0:04:41]} 8. b3 {[%emt 0:00:06]} cxb3 $1 {[%emt 0:00:30]} 9. axb3 {[%emt 0:00:07]} O-O {[%emt 0:01:43]} 10. c4 {[%emt 0:00:19][%cal Bc2c4,Bc4c5][%mdl 32]} h6 {[%emt 0:07:01] [#]} (10... Nc6 $11) 11. Nc3 {[%emt 0:02:26]} (11. c5 $1 $16 {[%cal Rc5d6]} Bc7 12. b4) 11... Nc6 $11 {[%emt 0:03:33]} 12. h3 {[%emt 0:16:37]} b6 {[%emt 0:09:50] [#]} 13. Be3 $146 {[%emt 0:01:42]} ({Predecessor:} 13. Nb5 Bb8 14. Bb2 Bf5 15. Ne5 Qc8 16. Bf3 Be4 17. Re1 Re8 18. Rc1 Nxe5 19. dxe5 Bxe5 20. Bxe5 Rxe5 21. cxd5 {½-½ (73) Manukyan,A (2148)-Grigoryan,A (1996) Chess.com INT 2020}) 13... Bb7 {[%emt 0:02:22]} 14. c5 {[%emt 0:04:33]} Be7 {[%emt 0:01:16]} 15. Ra4 {[%emt 0:01:11]} a5 {[%emt 0:06:01] Inhibits b4.} 16. Ra1 {[%emt 0:04:27]} Ne4 {[%emt 0:05:31]} 17. Rc1 {[%emt 0:03:25]} Nb4 {[%emt 0:02:09][%cal Rb6c5]} 18. Na4 {[%emt 0:02:32]} bxc5 {[%emt 0:00:40]} 19. Nxc5 {[%emt 0:00:52]} Bxc5 {[%emt 0:02:40]} 20. dxc5 {[%emt 0:03:06]} Na2 {[%emt 0:01:38]} 21. Qd4 {[%emt 0:22:43]} Nxc1 {[%emt 0:00:21]} 22. Rxc1 {[%emt 0:00:02]} Ba6 {[%emt 0:03:19] Inhibits Bb5.} 23. Bd1 {[%emt 0:00:10]} Qf6 {[%emt 0:06:20]} (23... Bb5 $15) 24. Ne5 {[%emt 0:02:36]} Rfe8 {[%emt 0:02:29]} 25. f4 {[%emt 0:00:15]} Ng3 $1 {[%emt 0:06:06] Threatens to win with ...Be2.} 26. Qxd5 {[%emt 0:04:06]} ({White should play} 26. Bf2 $15 Ne2+ 27. Bxe2 Bxe2 28. c6) 26... Nf5 {[%emt 0:11:56]} (26... Rad8 $17 27. Qf3 {[#]} Rxd1+ $1 28. Rxd1 Be2 29. Qxg3 Bxd1) 27. Bf2 $1 {[%emt 0:05:12] Hoping for Bh5.} Ne7 {[%emt 0:00:44][%csl LRd5,LRf4]} 28. Qf3 {[%emt 0:07:31]} Ng6 {[%emt 0:01:19]} 29. Bg3 {[%emt 0:00:51]} Rac8 {[%emt 0:01:01]} 30. c6 {[%emt 0:04:38]} Nxe5 {[%emt 0:05:10]} 31. fxe5 {[%emt 0:00:11]} Qd8 {[%emt 0:02:02]} (31... Qg6 $5 {[%cal Ra6b7]} 32. Bc2 Rxc6 33. Bxg6 Rxc1+ 34. Kh2 fxg6 $11) 32. Qe3 {[%emt 0:02:50]} (32. Qc3 $14) 32... Bb5 {[%emt 0:05:23]} 33. Bf3 {[%emt 0:02:19]} Re6 $1 {[%emt 0:00:20][%cal Rb5c6]} 34. Rd1 {[%emt 0:03:38] Weighted Error Value: White=0.17 (very precise) /Black=0.14 (very precise)} 1/2-1/2

[Event "Summer Prague Open-A 2022"]
[Site "Prague"]
[Date "2022.08.10"]
[Round "7.21"]
[White "Vecera, Dominik"]
[Black "Shehzad, Shazil"]
[Result "1/2-1/2"]
[ECO "C55"]
[WhiteElo "2066"]
[BlackElo "2274"]
[Annotator "TA"]
[PlyCount "123"]
[EventDate "2022.08.05"]
[EventType "swiss"]
[EventCountry "CZE"]
[SourceTitle "playchess.com"]
[Source "ChessBase"]
[SourceQuality "1"]
[TimeControl "40/5400+30:1800+30"]

{[%evp 15,123,0,0,0,0,0,0,0,0,-19,-8,0,0,0,0,-16,0,0,0,0,1,-7,0,-5,0,-3,0,0,0,0,0,0,0,-7,-12,-6,0,-92,-14,-86,-22,-18,0,0,49,-187,-50,-54,-66,-136,-183,-166,-59,-641,-631,-579,-672,-541,-537,-701,-612,-647,-421,-804,-704,-800,-783,-755,-739,-778,-699,-857,832,-325,1472,1487,1354,1326,1097,165,165,165,164,0,0,0,0,0,0,0,0,0,0,0,240,0,0,0,0,0,0,0,0,0,0,0,0,0,0,0]} 1. e4 {[%emt 0:00:15]} e5 {[%emt 0:00:40]} 2. Nf3 {[%emt 0:00:07]} Nc6 {[%emt 0:00:15]} 3. d4 {[%emt 0:00:39]} exd4 {[%emt 0:00:34]} 4. Bc4 {[%emt 0:00:10]} Nf6 {[%emt 0:00:16]} 5. e5 {[%emt 0:00:34]} d5 {[%emt 0:00:30]} 6. Bb5 {[%emt 0:00:08]} Nd7 {[%emt 0:00:06][%cal Bf6d7,Bd7b8,Bb8c6][%mdl 32]} 7. O-O {[%emt 0:01:24]} Be7 {[%emt 0:01:07]} 8. Bxc6 {[%emt 0:04:55]} bxc6 {[%emt 0:00:07]} 9. Nxd4 {[%emt 0:00:09][%cal Bf3d4,Bd4b5,Bb5c7][%mdl 32] C56: Two Knights: 4 d4 exd4 5 0-0 Nxe4.} Nb8 {[%emt 0:00:04]} 10. c4 {[%emt 0:02:26]} O-O {[%emt 0:00:12]} 11. Nc3 {[%emt 0:06:33]} dxc4 {[%emt 0:03:51] [#]} 12. Be3 $146 {[%emt 0:06:16]} ({Predecessor:} 12. Re1 Re8 13. Bf4 Bc5 14. Re4 Na6 15. Nxc6 Qxd1+ 16. Rxd1 Bb7 17. Rxc4 Bb6 18. h3 {0-1 (67) Silva,K (2086)-Cadilhac,I (2323) Cuiaba 2021}) 12... c5 $1 {[%emt 0:03:16]} 13. Ndb5 {[%emt 0:05:46]} Nc6 {[%emt 0:00:36]} 14. Qd5 {[%emt 0:11:30]} Bb7 {[%emt 0:08:27]} 15. Rfd1 {[%emt 0:08:17]} Qc8 {[%emt 0:04:50][%cal Oc6d4] Hoping for ...Nd4!} 16. Qd7 {[%emt 0:14:22] Prevents Nd4.} ({Much weaker is} 16. Bxc5 a6 17. Bxe7 Nxe7 $17) 16... Rd8 {[%emt 0:16:17]} 17. Qxc7 {[%emt 0:01:37]} Qxc7 {[%emt 0:02:38]} (17... Rd3 {keeps more tension.} 18. Nd5 Qxc7 19. Nbxc7 Rd8) 18. Nxc7 {[%emt 0:00:03]} Rab8 {[%emt 0:02:37]} 19. N7d5 {[%emt 0:09:50]} Bf8 $1 {[%emt 0:01:36]} 20. Bf4 {[%emt 0:00:28]} Nb4 {[%emt 0:16:11][%cal Rb7d5]} 21. e6 {[%emt 0:13:47]} fxe6 {[%emt 0:01:21]} 22. Nxb4 {[%emt 0:01:26]} cxb4 {[%emt 0:00:22]} 23. Bxb8 {[%emt 0:00:04]} Rxb8 {[%emt 0:00:15]} 24. Ne2 {[%emt 0:00:33]} g5 {[%emt 0:00:10]} 25. Rac1 {[%emt 0:04:39]} Bd5 {[%emt 0:01:34]} 26. Nd4 {[%emt 0:01:12]} (26. h4 $11) 26... Bg7 {[%emt 0:01:02]} (26... a5 $1 $17) 27. f3 {[%emt 0:00:21]} (27. b3 $11 c3 28. Nf5 $1) 27... a6 {[%emt 0:05:47]} (27... a5 $17) 28. Rc2 $11 {[%emt 0:03:34]} Rf8 {[%emt 0:02:00]} 29. h3 {[%emt 0:01:31]} h5 {[%emt 0:00:24]} (29... Bf6 $11) 30. Rcc1 $2 {[%emt 0:02:14]} (30. Re2 $1 $14 {stays ahead.}) 30... g4 {[%emt 0:02:30]} (30... Rf4 $1 $19 31. Nc2 (31. Ne2 $2 Bxb2 32. Rc2 c3 $19) 31... Bxb2 32. Nxb4 Bxc1 33. Rxc1 a5) 31. hxg4 $15 {[%emt 0:00:05]} hxg4 {[%emt 0:00:11]} 32. fxg4 {[%emt 0:00:28]} (32. Rc2 $1 $15) 32... Rf4 $17 {[%emt 0:00:19][%csl LRd4,LRg4]} 33. Nf5 {[%emt 0:00:14]} Bf8 {[%emt 0:00:19] Prevents Ne7+.} ({Don't do} 33... exf5 34. Rxd5 Bxb2 35. Rc2 Bd4+ 36. Kh2 $11) ({Black should play} 33... Bxb2 $19 34. Ne7+ Kf7 35. Nxd5 exd5) 34. g3 $2 {[%emt 0:01:17][%mdl 8192]} (34. Ne3 $15 Bc5 35. Re1) 34... Bc5+ $19 {[%emt 0:01:08]} 35. Kh2 {[%emt 0:00:01]} Rf2+ {[%emt 0:00:30]} 36. Kh3 {[%emt 0:00:07]} Rxb2 {[%emt 0:00:44]} 37. Nh6+ {[%emt 0:00:48]} Kg7 {[%emt 0:00:56]} 38. g5 {[%emt 0:00:01]} Be3 {[%emt 0:00:53]} 39. Kg4 {[%emt 0:01:12]} (39. Rxd5 $142 Bxc1 40. Rd7+ Kf8 41. Nf7) 39... Bxc1 {[%emt 0:00:15] A strong pair of Bishops.} 40. Rf1 {[%emt 0:00:29] [#]} e5 $1 {[%emt 0:03:20]} 41. Rf6 {[%emt 0:30:01] Against Be6+} Rh2 {[%emt 0:35:31]} 42. Nf5+ {[%emt 0:00:31]} Kh8 {[%emt 0:00:49] aiming for ...Bg2.} 43. g6 {[%emt 0:00:46] Black must now prevent Rf8+.} b3 $4 {[%emt 0:00:00][%mdl 8192]} (43... Rf2 $19 44. Rf8+ Bg8) 44. Rf8+ $18 {[%emt 0:00:00]} Bg8 {[%emt 0:00:00]} 45. Ne7 {[%emt 0:00:00][%csl Ge7][%cal Rf8g8]} Kg7 {[%emt 0:00:00]} 46. Rxg8+ {[%emt 0:00:00][%mdl 4096] Endgame KRB-KRN} Kf6 {[%emt 0:00:00]} 47. Rf8+ $2 {[%emt 0:00:00]} (47. Nd5+ Ke6 48. Re8+ Kxd5 49. g7 Rxa2 50. g8=Q+ Kd4 51. Qe6) 47... Kxe7 {[%emt 0:00:56] KRB-KR} 48. g7 {[%emt 0:00:00]} Bh6 {[%emt 0:01:54] [#]} (48... bxa2 49. g8=Q) 49. g8=Q {[%emt 0:00:00]} Bxf8 $11 {[%emt 0:00:04]} 50. axb3 {[%emt 0:00:00] KQ-KRB} c3 {[%emt 0:03:14]} 51. Qg5+ {[%emt 0:00:00]} Kf7 {[%emt 0:00:21]} 52. Qf5+ {[%emt 0:00:00]} Kg8 {[%emt 0:00:13]} 53. Qe6+ {[%emt 0:00:00]} Kh7 {[%emt 0:00:41]} 54. Qd7+ {[%emt 0:02:57]} Kg8 $2 {[%emt 0:01:19] [#]} (54... Bg7 $1 $11) 55. Qe6+ $2 {[%emt 0:02:10]} ({Only move:} 55. Qd5+ $1 $18 Kh8 56. Qf3 (56. Qxe5+ Bg7 $11)) 55... Kh7 {[%emt 0:00:09] The position is equal.} 56. Qf7+ {[%emt 0:01:11]} Bg7 {[%emt 0:00:10]} 57. Qf5+ {[%emt 0:00:04]} Kh6 {[%emt 0:00:18]} 58. Qg5+ {[%emt 0:01:13]} Kh7 {[%emt 0:00:06]} 59. Qf5+ {[%emt 0:00:18]} Kh6 {[%emt 0:00:05]} 60. Qe6+ {[%emt 0:00:02]} Kh7 {[%emt 0:00:07]} 61. Qf5+ {[%emt 0:01:17]} Kh6 {[%emt 0:00:51]} 62. Qg5+ {[%emt 0:00:46] Quite a comeback for White.  Weighted Error Value: White=0.59/Black=0.31} 1/2-1/2